{"text_format":"1","workbook":"xlsx","n_sheets":4,"sheets":["MAYO","JUNIO","Resumen","menu"],"not_rendered":{"charts":0,"images":14,"macros":1,"external_links":0,"defined_names":4,"comments":1,"pivot_tables":0},"unopened":[],"bounds":{"document_bytes":16777216,"sheet_cells":100000,"rows_first":2000,"rows_last":500,"rows_between":2000,"halvings":0,"cell_chars":16384,"cell_head_chars":4096},"cells_cut":0,"cells_raw":0,"read":"whole","date_system":"1900"}

{"sheet":"MAYO","index":0,"n_rows":76,"n_cols":10,"rows_kept":76,"cut":false,"hidden":false,"merged":[[41,9,41,10],[41,7,41,8],[2,0,2,10],[3,0,3,10],[5,1,5,2],[4,0,4,2],[5,3,5,8],[6,6,6,8],[41,5,41,6],[53,7,53,8],[53,9,53,10],[60,2,61,2],[60,4,61,4],[60,6,61,6],[60,8,61,8],[41,3,41,4],[65,1,65,2],[6,1,6,2],[6,3,6,4],[65,3,65,4],[9,1,9,2],[8,3,8,6],[9,3,9,6],[29,1,37,10],[41,1,49,2],[60,10,61,10],[53,1,53,2],[53,3,53,4],[53,5,53,6],[48,6,49,6],[48,4,49,4],[0,3,1,7],[78,0,81,9],[109,0,109,10],[8,8,8,9],[9,8,9,9],[11,0,11,10],[105,0,105,10],[106,0,106,10],[72,2,73,2],[72,4,73,4],[48,8,49,8],[48,10,49,10],[63,5,73,10],[77,0,77,1],[7,0,7,2],[8,0,8,2]]}
[null,null,null,"HAPPY LUNCHES SERVICE SAC \nCOLEGIO SANTA MARIA\nSECUNDARIA"]
[]
["BCP CUENTA CORRIENTE: 194189468-2-000                                                         CODIGO INTERBANCARIO BCP: 002 194 00189468 2000 90           \nBBVA CUENTA CORRIENTE: 0011-0149-0100033241-29                                           CODIGO INTERBANCARIO BBVA: 011 - 149 - 000100033241 - 29  "]
["FAVOR ENVIAR VOUCHER O TRANSFERENCIA ELECTRÓNICA A NUESTRO E-MAIL UNA VEZ REALIZADO EL ABONO EN NUESTRA CUENTA. GRACIAS POR SU COLABORACIÓN."]
[" DATOS DEL PADRE O APODERADO :"]
[null,"NOMBRES Y APELLIDOS:"]
[null,"TELÉFONO:","TELEFONO:",null,null,"CORREO ELECTRÓNICO:"]
["DATOS DEL ALUMNO                           :"]
["NOMBRES :",null,null,null,null,null,null,"GRADO Y SECCIÓN :"]
[null,"APELLIDOS :",null,null,null,null,null,"ALERGIAS :"]
[]
["IMPORTANTE: ES NECESARIO QUE LOS DATOS SOLICITADOS SEAN LLENADOS DE FORMA CORRECTA TANTO DEL TUTOR COMO DEL ALUMNO(A) . ELEGIR UNICAMENTE  LA OPCIÓN  EN LA FECHA  QUE DESEA EL SERVICIO,DE NO NECESITAR EL SERVICIO UN DÍA NO SELECCIONAR NINGUNA OPCIÓN ESE DÍA . YA QUE EL PROGRAMA CALCULARÁ LA CANTIDAD DE ALMUERZOS ELEGIDOS POR ALUMNO ASÍ COMO EL TOTAL A DEPOSITAR.PARA  REALIZAR  EL PEDIDO PARA UN ALUMNO MÁS DIRIGIRSE A LA SIGUIENTE HOJA ELECTRÓNICA.\nEN CADA HOJA ELECTRÓNICA DEBE DE HABER SOLO UN ALUMNO.\nNO RE-ENVIAR SIN HABER GUARDADO EL DOCUMENTO DESPUÉS DE HECHA LA SELECCIÓN"]
[]
[]
["Opción","Lunes",null,"Martes",null,"Miércoles",null,"Jueves",null,"Viernes"]
[null,{"$f":"menu!A3","v":"2 de Mayo"},null,{"$f":"menu!A12","v":"3 de Mayo "},null,{"$f":"menu!A21","v":"4 de Mayo "},null,{"$f":"menu!A30","v":"5 de Mayo"},null,{"$f":"menu!A39","v":"6 de Mayo"}]
[]
["Entrada",{"$f":"menu!C3","v":"ENSALADA DE ESPINACA"},null,{"$f":"menu!C12","v":"HUEVITO RELLENO"},null,{"$f":"menu!C21","v":"ENSALADA DE PEPINO "},null,{"$f":"menu!C30","v":"SOLTERITO"},null,{"$f":"menu!C39","v":"MINI CAPRESSE"}]
["A",{"$f":"menu!C4","v":"LENTEJITAS CON GUISO DE POLLO/ARROZ"},null,{"$f":"menu!C13","v":"POLLO AL HORNO CON PAPAS DORADAS "},null,{"$f":"menu!C22","v":"TRIGO GUISADO CON QUESITO / ARROZ PRIMAVERA"},null,{"$f":"menu!C31","v":"OLLUQUITOS GUISADOS CON RES /ARROZ BLANCO"},null,{"$f":"menu!C40","v":"FRIJOLES CANARIO CON SECO DE RES"}]
["B",{"$f":"menu!C5","v":"GUISO DE CARNE CON ARROZ"},null,{"$f":"menu!C14","v":"ARROZ TAPADO CON PLATANITO AL GRILL"},null,{"$f":"menu!C23","v":"SPAGHETTI A LA BOLOGNESA "},null,{"$f":"menu!C32","v":"POLLO A LA COCA-COLA/ARROZ PRIMAVERA"},null,{"$f":"menu!C41","v":"POLLO A LA OLLA/ARROZ"}]
["C",{"$f":"menu!C6","v":"POLLO A LA PLANCHA CON ARROZ A LA JARDINERA"},null,{"$f":"menu!C15","v":"POLLO A LA PLANCHA CON PAPA SANCOCHADA Y VERDURAS"},null,{"$f":"menu!C24","v":"POLLO A LA PLANCHA CON ARROZ Y VERDURAS"},null,{"$f":"menu!C33","v":"POLLO A LA PLANCHA CON PURÉ DE PAPA AMARILLA"},null,{"$f":"menu!C42","v":"POLLO A LA PLANCHA CON PAPAS DORADAS Y VERDURAS"}]
["D",{"$f":"menu!C7","v":"ENSALADA CÉSAR CON POLLITO A LA PLANCHA "},null,{"$f":"menu!C16","v":"ENSALADA FRESCA CON PESCADO AL VAPOR"},null,{"$f":"menu!C25","v":"ENSALADA DELICIA CON PAVITO "},null,{"$f":"menu!C34","v":"ENSALADA ORIENTAL CON POLLO A LA PLANCHA "},null,{"$f":"menu!C43","v":"ENSALADA DE BRÓCOLI CON POLLO EN CUBOS"}]
["E",{"$f":"menu!C8","v":"ARROZ CHAUFA DE POLLO"},null,{"$f":"menu!C17","v":"PIZZA CLÁSICA ARTESANAL CON ENSALADA"},null,{"$f":"menu!C26","v":"POLLITO BBQ CON ZANAHORIA Y APIO EN TIRAS"},null,{"$f":"menu!C35","v":"CHICKEN FINGERS CON BOLIYUCAS EN QUINUA"},null,{"$f":"menu!C44","v":"NUGGETS AL HORNO CON TEQUEÑOS CON GUACAMOLE"}]
["V",{"$f":"menu!C9","v":"SPAGUETTI AL PESTO CON QUESO PARMESANO"},null,{"$f":"menu!C18","v":"SALTADO DE CHOCLO VEGETARIANO"},null,{"$f":"menu!C27","v":"FILETE DE GLUTEN CON SALSA DE ESPINACAS Y ARROZ"},null,{"$f":"menu!C36","v":"PAPA A LA HUANCAINA CON HUEVO DURO"},null,{"$f":"menu!C45","v":"ARROZ CHAUFA VEGETARIANO "}]
["postre",{"$f":"menu!C10","v":"FRUTA DE ESTACIÓN"},null,{"$f":"menu!C19","v":"GELATINA DE COLORES"},null,{"$f":"menu!C28","v":"FLAN"},null,{"$f":"menu!C37","v":"GALLETAS NATURALES"},null,{"$f":"menu!C46","v":"MINI PYE DE MANZANA"}]
["refresco",{"$f":"menu!C11","v":"LIMONADA"},null,{"$f":"menu!C20","v":"CHICHA MORADA"},null,{"$f":"menu!C29","v":"NARANJADA"},null,{"$f":"menu!C38","v":"MARACUYÁ"},null,{"$f":"menu!C47","v":"LIMONADA"}]
[]
["Opción",{"$f":"menu!A48","v":"9 de Mayo"},null,{"$f":"menu!A57","v":"10 de Mayo"},null,{"$f":"menu!A66","v":"11 de Mayo"},null,{"$f":"menu!A75","v":"12 de Mayo"},null,{"$f":"menu!A84","v":"13 de Mayo"}]
[]
["Entrada"]
["A"]
["B"]
["C"]
["D"]
["E"]
["V"]
["postre"]
["refresco"]
[]
["Opción",{"$f":"menu!A93","v":"16 de Mayo"},null,{"$f":"menu!A102","v":"17 de Mayo"},null,{"$f":"menu!A111","v":"18 de Mayo"},null,{"$f":"menu!A120","v":"19 de Mayo"},null,{"$f":"menu!A129","v":"20 de Mayo"}]
[]
["Entrada",null,null,{"$f":"menu!C102","v":"CHOLITOS CON OCOPA"},null,{"$f":"menu!C111","v":"ENSALADA COCIDA "},null,{"$f":"menu!C120","v":"ENSALADA FRESCA"},null,{"$f":"menu!C129","v":"ENSALADA DE PALTA"}]
["A",null,null,{"$f":"menu!C103","v":"ALBONDIGAS A LA BOLOGNESA / ARROZ"},null,{"$f":"menu!C112","v":"POLLO EN SALSA DE ESPARRAGOS CON ARROZ PRIMAVERA"},null,{"$f":"menu!C121","v":"PAPA RELLENA DE POLLO / VERDURAS "},null,{"$f":"menu!C130","v":"SPAGHETTI A LO ALFREDO CON POLLITO  PICADO"}]
["B",null,null,{"$f":"menu!C104","v":"PAVITA GUISADA / ARROZ"},null,{"$f":"menu!C113","v":"SPAGHETTI A LA HUANCAINA CON LOMITO AL JUGO"},null,{"$f":"menu!C122","v":"FILETE DE PESCADO CON ARROZ CON CHOCLO"},null,{"$f":"menu!C131","v":"PAVITO AL HORNO CON CAMOTES AL HORNO"}]
["C",null,null,{"$f":"menu!C105","v":"POLLO A LA PLANCHA CON PAPITAS"},null,{"$f":"menu!C114","v":"POLLO A LA PLANCHA CON ARROZ BLANCO Y VERDURAS"},null,{"$f":"menu!C123","v":"POLLO A LA PLANCHA CON PAPAS DORADAS"},null,{"$f":"menu!C132","v":"POLLO A LA PLANCHA CON PAPITAS"}]
["D",null,null,{"$f":"menu!C106","v":"ENSALADA CAPRESSE CON POLLITO A LA PLANCHA "},null,{"$f":"menu!C115","v":"PALTA RELLENA CON POLLITO Y VERDURAS"},null,{"$f":"menu!C124","v":"ENSALADA DE COL CON POLLO A LA PLANCHA"},null,{"$f":"menu!C133","v":"ENSALADA COBB CON POLLITO "}]
["E",null,null,{"$f":"menu!C107","v":"CHICKEN FINGERS CON PURÉ DE PAPITA AMARILLA "},null,{"$f":"menu!C116","v":"PIZZA CLÁSICA ARTESANAL CON ENSALADA"},null,{"$f":"menu!C125","v":"HAMBURGUESA DE RES CON VERDURAS Y ARROZ"},null,{"$f":"menu!C134","v":"POLLO TIPO PARRILLA CON PAPITAS"}]
["V",null,null,{"$f":"menu!C108","v":"LASAGNA VEGETARIANA DE PORO Y ESPINACAS"},null,{"$f":"menu!C117","v":"FILETE DE GLUTEN CON SALSA DE VERDURAS/ARROZ"},null,{"$f":"menu!C126","v":"MACARRONES CON QUESO "},null,{"$f":"menu!C135","v":"SALTADO VEGETARIANO CON ARROZ"}]
["postre",null,null,{"$f":"menu!C109","v":"PYE DE MANZANA"},null,{"$f":"menu!C118","v":"COMPOTA DE FRUTA"},null,{"$f":"menu!C127","v":"ARROZ CON LECHE"},null,{"$f":"menu!C136","v":"GALLETAS NATURALES"}]
["refresco",null,null,{"$f":"menu!C110","v":"CHICHA MORADA"},null,{"$f":"menu!C119","v":"LIMONADA"},null,{"$f":"menu!C128","v":"NARANJADA"},null,{"$f":"menu!C137","v":"MARACUYÁ"}]
[]
["Opción",{"$f":"menu!A138","v":"23 de Mayo"},null,{"$f":"menu!A147","v":"24 de Mayo"},null,{"$f":"menu!A156","v":"25 de Mayo"},null,{"$f":"menu!A165","v":"26 de Mayo"},null,{"$f":"menu!A174","v":"27 de Mayo"}]
[]
["Entrada",{"$f":"menu!C138","v":"WANTAN CON TAMARINDO"},null,{"$f":"menu!C147","v":"CHOCLITO CON QUESO"},null,{"$f":"menu!C156","v":"ENSALADA FRESCA"},null,{"$f":"menu!C165","v":"TEQUEÑOS CON GUACAMOLE"},null,{"$f":"menu!C174","v":"ENSALADA DE COL"}]
["A",{"$f":"menu!C139","v":"ARROZ CHAUFA MIXTO DE POLLO Y RES"},null,{"$f":"menu!C148","v":"VAINITAS SALTEADAS CON RES"},null,{"$f":"menu!C157","v":"FRIJOLES GUISADOS CON CERDO/PRIMAVERA"},null,{"$f":"menu!C166","v":"POLLO A LA REINA CON ARROZ"},null,{"$f":"menu!C175","v":"ARROZ TAPADO CON PLATANO A LA PLANCHA"}]
["B",{"$f":"menu!C140","v":"VAINITAS SALTEADAS CON RES/ARROZ"},null,{"$f":"menu!C149","v":"POLLO AL SILLAO CON ARROZ"},null,{"$f":"menu!C158","v":"POLLO SALTADO CON ARROZ"},null,{"$f":"menu!C167","v":"SECO DE RES CON ARROZ"},null,{"$f":"menu!C176","v":"POLLO A LA COCACOLA/ARROZ"}]
["C",{"$f":"menu!C141","v":"POLLO A LA PLANCHA CON ARROZ Y VERDURAS"},null,{"$f":"menu!C150","v":"POLLO A LA PLANCHA CON VERDURAS Y PAPA"},null,{"$f":"menu!C159","v":"POLLO A LA PLANCHA CON PURÉ ROSADO"},null,{"$f":"menu!C168","v":"POLLO A LA PLANCHA CON  ARROZ A LA JARDINERA"},null,{"$f":"menu!C177","v":"POLLO A LA PLANCHA CON PAPITAS"}]
["D",{"$f":"menu!C142","v":"ENSALADA ORIENTAL CON POLLITO A LA PLANCHA "},null,{"$f":"menu!C151","v":"ENSALADA BRUSCHETTA CON POLLITO A LA PLANCHA"},null,{"$f":"menu!C160","v":"ENSALADA CRIOLLA CON POLLO A LA PLANCHA"},null,{"$f":"menu!C169","v":"ENSALADA CHEFF CON POLLITO A LA PLANCHA "},null,{"$f":"menu!C178","v":"ENSALADA RUSA CON MEDALLONES DE PAVITA"}]
["E",{"$f":"menu!C143","v":"TORTILLAS DE ATÚN CON ARROZ Y VERDURAS"},null,{"$f":"menu!C152","v":"POLLITO ANTICUCHADO CON CHOCLO EN TROZOS"},null,{"$f":"menu!C161","v":"PIZZA CLÁSICA CON ENSALADA"},null,{"$f":"menu!C170","v":"BISTECK(TROZADO)  CON PAPITAS"},null,{"$f":"menu!C179","v":"PIERNITAS AL SILLAO CON ARROZ"}]
["V",{"$f":"menu!C144","v":"TRIGO GUISADO CON QUESITO/BRÓCOLI"},null,{"$f":"menu!C153","v":"CHOCLO SALTADO VEGETARIANO"},null,{"$f":"menu!C162","v":"SECO VEGETARIANO CON ARROZ"},null,{"$f":"menu!C171","v":"FILETE DE GLUTEN CON SALSA DE VERDURAS/ARROZ"},null,{"$f":"menu!C180","v":"GUISO DE SOYA CON ARROZ BLANCO"}]
["postre",{"$f":"menu!C145","v":"YOGURT"},null,{"$f":"menu!C154","v":"GELATINA DE COLORES"},null,{"$f":"menu!C163","v":"FRUTA DE ESTACIÓN"},null,{"$f":"menu!C172","v":"MUFFIN DE FRUTA "},null,{"$f":"menu!C181","v":"PYE DE MANZANA "}]
["refresco",{"$f":"menu!C146","v":"AGUA MINERAL"},null,{"$f":"menu!C155","v":"CHICHA MORADA"},null,{"$f":"menu!C164","v":"LIMONADA"},null,{"$f":"menu!C173","v":"MARACUYÁ"},null,{"$f":"menu!C182","v":"LIMONADA"}]
[]
["Opción",{"$f":"menu!A183","v":"30 de Mayo"},null,{"$f":"menu!A192","v":"31 de Mayo"}]
[]
["Entrada",{"$f":"menu!C183","v":"HUEVO RELLENO"},null,{"$f":"menu!C192","v":"ENSALADA CALIENTE"}]
["A",{"$f":"menu!C184","v":"LOMO SALTADO CON ARROZ"},null,{"$f":"menu!C193","v":"HAMBURGUESA DE RES AL PLATO"}]
["B",{"$f":"menu!C185","v":"POLLO AL SILLAO / ARROZ PRIMAVERA"},null,{"$f":"menu!C194","v":"COLIFLOR SALTEADA CON POLLO /ARROZ BLANCO"}]
["C",{"$f":"menu!C186","v":"POLLO A LA PLANCHA CON PAPA SANCOCHADA Y VERDURAS"},null,{"$f":"menu!C195","v":"POLLO A LA PLANCHA CON ENSALADA CALIENTE"}]
["D",{"$f":"menu!C187","v":"ENSALADA ORIENTAL CON POLLITO"},null,{"$f":"menu!C196","v":"ENSALADA DE ATÚN CON PAPA"}]
["E",{"$f":"menu!C188","v":"PECHUGUITAS CON PAPITAS"},null,{"$f":"menu!C197","v":"HUEVITOS EN SU NIDO CON ARROZ CON VERDURAS"}]
["V",{"$f":"menu!C189","v":"CAUSA VEGETARIANA"},null,{"$f":"menu!C198","v":"ARROZ TAPADO VEGETARIANO CON PLÁTANO"}]
["postre",{"$f":"menu!C190","v":"BOMBITAS HAPPY LUNCHES"},null,{"$f":"menu!C199","v":"FRUTA DE ESTACIÓN"}]
["refresco",{"$f":"menu!C191","v":"NARANJADA"},null,{"$f":"menu!C200","v":"CHICHA MORADA"}]
[]
[null,null,null,null,null,null,null,"Limpiar  Pedidos"]

{"sheet":"JUNIO","index":1,"n_rows":76,"n_cols":10,"rows_kept":76,"cut":false,"hidden":false,"merged":[[0,3,1,7],[2,0,2,10],[3,0,3,10],[4,0,4,2],[5,1,5,2],[5,3,5,8],[6,1,6,2],[6,3,6,4],[6,6,6,8],[7,0,7,2],[8,0,8,2],[8,3,8,6],[8,8,8,9],[9,1,9,2],[9,3,9,6],[9,8,9,9],[11,0,11,10],[29,1,29,2],[29,3,29,4],[29,5,29,6],[29,7,29,8],[29,9,29,10],[36,2,37,2],[36,4,37,4],[36,6,37,6],[36,8,37,8],[36,10,37,10],[48,10,49,10],[53,1,53,2],[53,3,53,4],[53,5,53,6],[53,7,53,8],[53,9,53,10],[41,1,49,2],[41,3,41,4],[41,5,41,6],[41,7,41,8],[41,9,41,10],[106,0,106,10],[109,0,109,10],[15,1,25,4],[65,7,65,8],[60,2,61,2],[60,4,61,4],[60,6,61,6],[60,8,61,8],[60,10,61,10],[65,1,65,2],[65,3,65,4],[72,2,73,2],[72,4,73,4],[48,4,49,4],[48,6,49,6],[48,8,49,8],[72,8,73,8],[63,9,73,10],[77,0,77,1],[78,0,81,9],[105,0,105,10],[65,5,73,6]]}
[null,null,null,"HAPPY LUNCHES SERVICE SAC \nCOLEGIO SANTA MARIA\nSECUNDARIA"]
[]
["BCP CUENTA CORRIENTE: 194189468-2-000                                                         CODIGO INTERBANCARIO BCP: 002 194 00189468 2000 90           \nBBVA CUENTA CORRIENTE: 0011-0149-0100033241-29                                           CODIGO INTERBANCARIO BBVA: 011 - 149 - 000100033241 - 29  "]
["FAVOR ENVIAR VOUCHER O TRANSFERENCIA ELECTRÓNICA A NUESTRO E-MAIL UNA VEZ REALIZADO EL ABONO EN NUESTRA CUENTA. GRACIAS POR SU COLABORACIÓN."]
[" DATOS DEL PADRE O APODERADO :"]
[null,"NOMBRES Y APELLIDOS:"]
[null,"TELÉFONO:","TELEFONO:",null,null,"CORREO ELECTRÓNICO:"]
["DATOS DEL ALUMNO                           :"]
["NOMBRES :",null,null,null,null,null,null,"GRADO Y SECCIÓN :"]
[null,"APELLIDOS :",null,null,null,null,null,"ALERGIAS :"]
[]
["IMPORTANTE: ES NECESARIO QUE LOS DATOS SOLICITADOS SEAN LLENADOS DE FORMA CORRECTA TANTO DEL TUTOR COMO DEL ALUMNO(A) . ELEGIR UNICAMENTE  LA OPCIÓN  EN LA FECHA  QUE DESEA EL SERVICIO,DE NO NECESITAR EL SERVICIO UN DÍA NO SELECCIONAR NINGUNA OPCIÓN ESE DÍA . YA QUE EL PROGRAMA CALCULARÁ LA CANTIDAD DE ALMUERZOS ELEGIDOS POR ALUMNO ASÍ COMO EL TOTAL A DEPOSITAR.PARA  REALIZAR  EL PEDIDO PARA UN ALUMNO MÁS DIRIGIRSE A LA SIGUIENTE HOJA ELECTRÓNICA.\nEN CADA HOJA ELECTRÓNICA DEBE DE HABER SOLO UN ALUMNO.\nNO RE-ENVIAR SIN HABER GUARDADO EL DOCUMENTO DESPUÉS DE HECHA LA SELECCIÓN"]
[]
[]
["Opción","Lunes",null,"Martes",null,"Miércoles",null,"Jueves",null,"Viernes"]
[null,null,null,null,null,{"$f":"menu!D21","v":"1 de Junio"},null,{"$f":"menu!D30","v":"2 de Junio"},null,{"$f":"menu!D39","v":"3 de Junio"}]
[]
["Entrada",null,null,null,null,{"$f":"menu!F21","v":"VERDURAS SALTEADAS"},null,{"$f":"menu!F30","v":"PAPA A LA HUANCAINA "},null,{"$f":"menu!F39","v":"SOUFFLÉ DE VERDURAS"}]
["A",null,null,null,null,{"$f":"menu!F22","v":"POLLO AL VINO CON ARROZ "},null,{"$f":"menu!F31","v":"ARROZ CON POLLO "},null,{"$f":"menu!F40","v":"ESTOFADO DE POLLO /ARROZ"}]
["B",null,null,null,null,{"$f":"menu!F23","v":"SPAGHETTI AL PESTO CON GUISO DE RES"},null,{"$f":"menu!F32","v":"ARVEJAS VERDES CON GUISITO DE POLLO "},null,{"$f":"menu!F41","v":"VAINITAS SALTEADAS CON RES/ARROZ BLANCO"}]
["C",null,null,null,null,{"$f":"menu!F24","v":"POLLO A LA PLANCHA CON ARROZ PRIMAVERA"},null,{"$f":"menu!F33","v":"POLLO A LA PLANCHA CON CHOCLITO CON QUESO"},null,{"$f":"menu!F42","v":"POLLO A LA PLANCHA CON ARROZ A LA JARDINERA"}]
["D",null,null,null,null,{"$f":"menu!F25","v":"ENSALADA BRUSCHETA CON POLLO EN DADOS"},null,{"$f":"menu!F34","v":"PALTA RELLENA CON POLLITO Y VERDURAS"},null,{"$f":"menu!F43","v":"TACO SALAD"}]
["E",null,null,null,null,{"$f":"menu!F26","v":"BISTECK(EN TROZOS) CON PAPITAS"},null,{"$f":"menu!F35","v":"PECHUGUITAS TERIYAKI CON ARROZ CHAUFA"},null,{"$f":"menu!F44","v":"HUEVITOS EN SU NIDO CON ENSALADA RUSA"}]
["V",null,null,null,null,{"$f":"menu!F27","v":"SUPER OCOPA CON HUEVO DURO"},null,{"$f":"menu!F36","v":"PEPIAN DE CHOCLO CON ARROZ"},null,{"$f":"menu!F45","v":"TORTILLA DE COLIFLOR(VEGETARIANO) CON ARROZ PRIMAVERA"}]
["postre",null,null,null,null,{"$f":"menu!F28","v":"MINI BROWNIE"},null,{"$f":"menu!F37","v":"GALLETAS NATURALES"},null,{"$f":"menu!F46","v":"MUFFIN DE ZANAHORIA"}]
["refresco",null,null,null,null,{"$f":"menu!F29","v":"MARACUYÁ"},null,{"$f":"menu!F38","v":"AGUA DE PIÑA"},null,{"$f":"menu!F47","v":"LIMONADA"}]
[]
["Opción",{"$f":"menu!D48","v":"6 de Junio"},null,{"$f":"menu!D57","v":"7 de Junio"},null,{"$f":"menu!D66","v":"8 de Junio"},null,{"$f":"menu!D75","v":"9 de Junio"},null,{"$f":"menu!D84","v":"10 de Junio"}]
[]
["Entrada",{"$f":"menu!F48","v":"ENSALADA DE PALTA"},null,{"$f":"menu!F57","v":"ENSALADA DE PEPINO"},null,{"$f":"menu!F66","v":"MINI CÉSAR"},null,{"$f":"menu!F75","v":"ENSALADA TRICOLOR"},null,{"$f":"menu!F84","v":"ENSALADA DE VERDURAS"}]
["A",{"$f":"menu!F49","v":"SPAGHETTI EN SALSA DE CARNE"},null,{"$f":"menu!F58","v":"CARAPULCRA GUISADA CON CERDO"},null,{"$f":"menu!F67","v":"POLLITO STROGONOFF CON ARROZ CON ZANAHORIAS"},null,{"$f":"menu!F76","v":"CARNE GUISADA CON ARROZ A LA JARDINERA"},null,{"$f":"menu!F85","v":"LOMITO AL PIMIENTO CON ARROZ BLANCO"}]
["B",{"$f":"menu!F50","v":"MILANESA DE PESCADO CON ARROZ PRIMAVERA"},null,{"$f":"menu!F59","v":"TALLARIN SALTADO ORIENTAL CON RES"},null,{"$f":"menu!F68","v":"FILETE PESCADO A LA PLANCHA CON YUCAS AL HORNO"},null,{"$f":"menu!F77","v":"AJÍ DE GALLINA"},null,{"$f":"menu!F86","v":"MILANESA DE POLLO CON VERDURAS"}]
["C",{"$f":"menu!F51","v":"POLLO A LA PLANCHA CON VERDURAS Y ARROZ"},null,{"$f":"menu!F60","v":"POLLO A LA PLANCHA CON PAPITAS"},null,{"$f":"menu!F69","v":"POLLO A LA PLANCHA CON PAPAS A LA GRIEGA"},null,{"$f":"menu!F78","v":"POLLO A LA PLANCHA CON ARROZ VERDURAS Y PAPA SANCOCHADA"},null,{"$f":"menu!F87","v":"POLLO A LA PLANCHA CON ENSALADA CALIENTE"}]
["D",{"$f":"menu!F52","v":"ENSALADA DE APIO , PALTA Y POLLO "},null,{"$f":"menu!F61","v":"CAUSA LIMEÑA"},null,{"$f":"menu!F70","v":"ENSALADA DE ESPINACAS CON PAVITO AL HORNO"},null,{"$f":"menu!F79","v":"ENSALADA RUSA CON PAVITA "},null,{"$f":"menu!F88","v":"ENSALADA PARRILLERA CON POLLO "}]
["E",{"$f":"menu!F53","v":"BISTECK (EN TROZOS) CON ARROZ CON VERDURAS"},null,{"$f":"menu!F62","v":"PIERNA DE POLLO CON PAPITAS"},null,{"$f":"menu!F71","v":"CHICKEN FINGERS CON PAPAS AL HORNO"},null,{"$f":"menu!F80","v":"POLLO EN SALSA BBQ CON CHOCLO ENTERO"},null,{"$f":"menu!F89","v":"DEDITOS DE PESCADO CON PAPAS DORADAS"}]
["V",{"$f":"menu!F54","v":"ARROZ CRIOLLO DE SOYA"},null,{"$f":"menu!F63","v":"SALTADO VEGETARIANO CON ARROZ"},null,{"$f":"menu!F72","v":"PAPA A LA HUANCAINA CON HUEVO DURO "},null,{"$f":"menu!F81","v":"PASTEL DE ACELGA CON VERDURAS SALTEADAS"},null,{"$f":"menu!F90","v":"SALTADO DE VERDURAS CON SOYA"}]
["postre",{"$f":"menu!F55","v":"FRUTA DE ESTACIÓN "},null,{"$f":"menu!F64","v":"GELATINA"},null,{"$f":"menu!F73","v":"FLAN "},null,{"$f":"menu!F82","v":"FRUTA DE ESTACIÓN"},null,{"$f":"menu!F91","v":"PYE DE FRUTAS"}]
["refresco",{"$f":"menu!F56","v":"LIMONADA"},null,{"$f":"menu!F65","v":"CHICHA MORADA"},null,{"$f":"menu!F74","v":"MARACUYÁ"},null,{"$f":"menu!F83","v":"LIMONADA"},null,{"$f":"menu!F92","v":"CARAMBOLA"}]
[]
["Opción",{"$f":"menu!D93","v":"13 de Junio"},null,{"$f":"menu!D102","v":"14 de Junio"},null,{"$f":"menu!D111","v":"15 de Junio"},null,{"$f":"menu!D120","v":"16 de Junio"},null,{"$f":"menu!D129","v":"17 de Junio"}]
[]
["Entrada",null,null,{"$f":"menu!F102","v":"ENSALADA DE VERDURAS"},null,{"$f":"menu!F111","v":"SALPICÓN DE VERDURAS"},null,{"$f":"menu!F120","v":"WANTAN CON TAMARINDO"},null,{"$f":"menu!F129","v":"ENSALADA DE ESPINACAS"}]
["A",null,null,{"$f":"menu!F103","v":"AJÍ DE GALLINA"},null,{"$f":"menu!F112","v":"CAU CAU DE POLLO/ARROZ"},null,{"$f":"menu!F121","v":"ARROZ CHAUFA AEROPUERTO"},null,{"$f":"menu!F130","v":"PAVITO AL HORNO CON ENSALADA RUSA"}]
["B",null,null,{"$f":"menu!F104","v":"ALBÓNDIGAS A LA NAPOLITANA"},null,{"$f":"menu!F113","v":"GUISO A LA JARDINERA CON ARROZ "},null,{"$f":"menu!F122","v":"CARAPULCRA GUISADA CON CERDO"},null,{"$f":"menu!F131","v":"CORDON BLEU DE POLLO CON ARROZ"}]
["C",null,null,{"$f":"menu!F105","v":"POLLO A LA PLANCHA CON PURÉ "},null,{"$f":"menu!F114","v":"POLLO A LA PLANCHA CON SPAGHETTI ALFREDO"},null,{"$f":"menu!F123","v":"POLLO A LA PLANCHA CON PAPITAS Y VERDURAS"},null,{"$f":"menu!F132","v":"POLLITO A PLANCHA CON ENSALADITA CALIENTE"}]
["D",null,null,{"$f":"menu!F106","v":"ENSALADA DE GARBANZOS CON ATÚN"},null,{"$f":"menu!F115","v":"ENSALADA DE CAIHUA CON POLLO A LA PLANCHA "},null,{"$f":"menu!F124","v":"ENSALADA WALDORF CON PAVITO AL HORNO"},null,{"$f":"menu!F133","v":"ENSALADA DE QUINUA CON POLLITO"}]
["E",null,null,{"$f":"menu!F107","v":"POLLO AL SILLAO CON ARROZ PRIMAVERA"},null,{"$f":"menu!F116","v":"PIERNITA DE POLLO CON PAPITAS"},null,{"$f":"menu!F125","v":"HUEVITOS EN SU NIDO CON PAPITAS"},null,{"$f":"menu!F134","v":"PIERNITA TERIYAKI CON PAPAS AL HORNO"}]
["V",null,null,{"$f":"menu!F108","v":"CAUSA VEGETARIANA"},null,{"$f":"menu!F117","v":"PALLARES GUISADOS / HUEVITO FRITO"},null,{"$f":"menu!F126","v":"ARROZ CHAUFA VEGETARIANO"},null,{"$f":"menu!F135","v":"PAPAS DUQUESAS CON HAMBURGUESA VEGETARIANA "}]
["postre",null,null,{"$f":"menu!F109","v":"BOMBITAS HAPPY LUNCHES "},null,{"$f":"menu!F118","v":"GELATINA"},null,{"$f":"menu!F127","v":"MUFFIN DE NARANJA"},null,{"$f":"menu!F136","v":"FLAN CON GELATINA"}]
["refresco",null,null,{"$f":"menu!F110","v":"CHICHA MORADA"},null,{"$f":"menu!F119","v":"LIMONADA "},null,{"$f":"menu!F128","v":"NARANJADA"},null,{"$f":"menu!F137","v":"LIMONADA"}]
[]
["Opción",{"$f":"menu!D138","v":"20 de Junio"},null,{"$f":"menu!D147","v":"21 de Junio"},null,{"$f":"menu!D156","v":"22 de Junio"},null,{"$f":"menu!D165","v":"23 de Junio"},null,{"$f":"menu!D174","v":"24 de Junio"}]
[]
["Entrada",{"$f":"menu!F138","v":"ENSALADA DE COL "},null,{"$f":"menu!F147","v":"HUEVO RELLENO"},null,{"$f":"menu!F156","v":"ENSALADA DE TOMATE"},null,{"$f":"menu!F165","v":"ENSALADA DE PALTA"},null,{"$f":"menu!F174","v":"ENSALDA BRUSCHETTA"}]
["A",{"$f":"menu!F139","v":"CAIGUA RELLENA DE RES/ARROZ BLANCO"},null,{"$f":"menu!F148","v":"POLLO EN SALSA BLANCA/ARROZ CON ZANAHORIA"},null,{"$f":"menu!F157","v":"OLLUQUITOS GUISADOS CON RES /ARROZ BLANCO"},null,{"$f":"menu!F166","v":"POLLITO SALTADO CON ARROZ "},null,{"$f":"menu!F175","v":"PESCADO A LA PLANCHA CON YUQUITAS DORADAS"}]
["B",{"$f":"menu!F140","v":"POLLO AL SILLAO CON ARROZ"},null,{"$f":"menu!F149","v":"SPAGHETTI AL PESTO CON GUISO DE RES"},null,{"$f":"menu!F158","v":"SECO A LA NORTEÑA CON YUCA"},null,{"$f":"menu!F167","v":"POLLO A LA OLLA CON ARROZ"},null,{"$f":"menu!F176","v":"POLLO A LA NARANJA CON ARROZ "}]
["C",{"$f":"menu!F141","v":"POLLO A LA PLANCHA CON ARROZ CON VERDURAS"},null,{"$f":"menu!F150","v":"POLLO A LA PLANCHA CON PAPITAS"},null,{"$f":"menu!F159","v":"POLLO A LA PLANCHA CON ARROZ PRIMAVERA"},null,{"$f":"menu!F168","v":"POLLO A LA PLANCHA CON VERDURAS Y PAPAS"},null,{"$f":"menu!F177","v":"POLLO A LA PLANCHA CON PAPITAS Y BRÓCOLI"}]
["D",{"$f":"menu!F142","v":"ENSALADA DELICIA CON POLLO "},null,{"$f":"menu!F151","v":"ENSALADA DE LEGUMBRES COCIDAS CON PAVO "},null,{"$f":"menu!F160","v":"ENSALADA DE ATÚN "},null,{"$f":"menu!F169","v":"ENSALADA DE VERDURAS CON POLLO A LA PLANCHA "},null,{"$f":"menu!F178","v":"ENSALADA CAPRESSE CON POLLITO"}]
["E",{"$f":"menu!F143","v":"LENTEJITAS GUISADAS/PECHUGUITAS DE POLLO"},null,{"$f":"menu!F152","v":"CHICKEN FINGERS CON ARROZ A LA JARDINERA"},null,{"$f":"menu!F161","v":"CANUTOS A LO ALFREDO CON POLLITO"},null,{"$f":"menu!F170","v":"ARROZ CHAUFA AEROPUERTO "},null,{"$f":"menu!F179","v":"NUGGETS AL HORNO CON TEQUEÑOS"}]
["V",{"$f":"menu!F144","v":"FILETE DE GLUTEN CON SALSA DE VERDURAS/ARROZ"},null,{"$f":"menu!F153","v":"CANUTOS CAPRESSE"},null,{"$f":"menu!F162","v":"CAU CAU VEGETARIANO "},null,{"$f":"menu!F171","v":"ARROZ A LA JARDINERA CON SOYA AL JUGO"},null,{"$f":"menu!F180","v":"LOCRO DE ZAPALLO CON ARROZ"}]
["postre",{"$f":"menu!F145","v":"FRUTA DE ESTACIÓN "},null,{"$f":"menu!F154","v":"GALLETAS NATURALES"},null,{"$f":"menu!F163","v":"MINI ALFAJOR"},null,{"$f":"menu!F172","v":"PYE DE FRUTAS"},null,{"$f":"menu!F181","v":"FRUTA DE ESTACIÓN"}]
["refresco",{"$f":"menu!F146","v":"LIMONADA"},null,{"$f":"menu!F155","v":"CHICHA MORADA"},null,{"$f":"menu!F164","v":"LIMONADA"},null,{"$f":"menu!F173","v":"MARACUYÁ"},null,{"$f":"menu!F182","v":"LIMONADA"}]
[]
["Opción",{"$f":"menu!D183","v":"27 de Junio"},null,{"$f":"menu!D192","v":"28 de Junio "},null,null,null,"30 DE JUNIO"]
[]
["Entrada",{"$f":"menu!F183","v":"MINI ENSALADA ORIENTAL"},null,{"$f":"menu!F192","v":"TORTILLA ESPAÑOLA"},null,null,null,{"$f":"menu!F210","v":"MINI ENSALADA CRIOLLA"}]
["A",{"$f":"menu!F184","v":"LOMO SALTADO CON ARROZ"},null,{"$f":"menu!F193","v":"POLLO A LA REINA CON ARROZ"},null,null,null,{"$f":"menu!F211","v":"FRIJOLES GUISADOS CON CERDO / ARROZ PRIMAVERA"}]
["B",{"$f":"menu!F185","v":"POLLO CON PIÑA/ARROZ CHAUFA"},null,{"$f":"menu!F194","v":"SPAGHETTI A LA CARBONARA CON POLLO"},null,null,null,{"$f":"menu!F212","v":"ARROZ CON POLLO "}]
["C",{"$f":"menu!F186","v":"ENSALADA FRESCA CON POLLO A LA PLANCHA "},null,{"$f":"menu!F195","v":"POLLO A LA PLANCHA CON PAPAS DORADAS"},null,null,null,{"$f":"menu!F213","v":"POLLO A LA PLANCHA CON VEGETALES Y ARROZ"}]
["D",{"$f":"menu!F187","v":"CAUSA DE POLLO Y VERDURAS "},null,{"$f":"menu!F196","v":"ENSALADA CÉSAR CON POLLO A LA PLANCHA "},null,null,null,{"$f":"menu!F214","v":"ENSALADA FRESCA CON ASADO DE RES"}]
["E",{"$f":"menu!F188","v":"PAELLA CON POLLO "},null,{"$f":"menu!F197","v":"POLLITO AL HORNO CON LENTEJITAS GUISADAS"},null,null,null,{"$f":"menu!F215","v":"HUEVITOS EN SU NIDO CON LENTEJITAS GUISADAS"}]
["V",{"$f":"menu!F189","v":"SALTADO VEGETARIANO CON ARROZ"},null,{"$f":"menu!F198","v":"SPAGHETTI A VEGETARIANO"},null,null,null,{"$f":"menu!F216","v":"MACARRONES CON QUESO"}]
["postre",{"$f":"menu!F190","v":"ARROZ CON LECHE"},null,{"$f":"menu!F199","v":"GELATINA"},null,null,null,{"$f":"menu!F217","v":"BOMBITAS HAPPY LUNCHES"}]
["refresco",{"$f":"menu!F191","v":"LIMONADA"},null,{"$f":"menu!F200","v":"CHICHA MORADA"},null,null,null,{"$f":"menu!F218","v":"LIMONADA"}]
[]
[null,null,null,null,null,null,null,"Limpiar  Pedidos"]

{"sheet":"Resumen","index":2,"n_rows":29,"n_cols":36,"rows_kept":29,"cut":false,"hidden":false,"merged":[[29,11,30,29],[24,0,24,29],[25,0,25,29],[28,0,28,29],[26,11,27,29],[17,1,17,29],[18,1,18,29],[0,0,1,0],[0,1,1,29],[8,0,10,27],[13,0,16,29],[12,0,12,29],[5,0,7,0],[5,1,7,1],[5,28,7,28]]}
[null,"No se aceptarán nuevos pedidos ni cambios de opción con menos de 03 días (72 horas) de anticipación, excepto dietas por enfermedad"]
[]
["NOMBRES Y APELLIDOS","SECCION Y GRADO",{"$f":"menu!A3","v":"2 de Mayo"},{"$f":"menu!A12","v":"3 de Mayo "},{"$f":"menu!A21","v":"4 de Mayo "},{"$f":"menu!A30","v":"5 de Mayo"},{"$f":"menu!A39","v":"6 de Mayo"},{"$f":"menu!A48","v":"9 de Mayo"},{"$f":"menu!A57","v":"10 de Mayo"},{"$f":"menu!A66","v":"11 de Mayo"},{"$f":"menu!A75","v":"12 de Mayo"},{"$f":"menu!A84","v":"13 de Mayo"},{"$f":"menu!A93","v":"16 de Mayo"},{"$f":"menu!A102","v":"17 de Mayo"},{"$f":"menu!A111","v":"18 de Mayo"},{"$f":"menu!A120","v":"19 de Mayo"},{"$f":"menu!A129","v":"20 de Mayo"},{"$f":"menu!A138","v":"23 de Mayo"},{"$f":"menu!A147","v":"24 de Mayo"},{"$f":"menu!A156","v":"25 de Mayo"},{"$f":"menu!A165","v":"26 de Mayo"},{"$f":"menu!A174","v":"27 de Mayo"},{"$f":"menu!A183","v":"30 de Mayo"},{"$f":"menu!A192","v":"31 de Mayo"},null,null,null,"Número de Almuerzos","COSTO DIARIO ","Total Soles"]
["PEDIDO ALU2"]
["PEDIDO ALU1"]
[{"$f":"CONCATENATE(MAYO!D9,\"  \",MAYO!D10)","v":"  "},{"$f":"MAYO!$I$9","v":0},{"$f":"IF(C5=1,\"A\",IF(C5=2,\"B\",IF(C5=3,\"C\",IF(C5=4,\"D\",IF(C5=5,\"E\",IF(C5=6,\"V\",\"\"))))))","v":""},{"$f":"IF(D5=1,\"A\",IF(D5=2,\"B\",IF(D5=3,\"C\",IF(D5=4,\"D\",IF(D5=5,\"E\",IF(D5=6,\"V\",\"\"))))))","v":""},"","","","","","","","","","","","","","","","","","","","",null,null,null,{"$f":"COUNTA(C5:AA5)","v":0},13,{"$f":"AB6*AC6","v":0},{"$f":"COUNTIF(C6:Z6,\"a\")","v":0},{"$f":"COUNTIF(C6:Z6,\"z\")","v":0},{"$f":"COUNTIF(C6:Z6,\"b\")","v":0},{"$f":"COUNTIF(C6:Z6,\"c\")","v":0},{"$f":"COUNTIF(C6:Z6,\"d\")","v":0},{"$f":"COUNTIF(C6:Z6,\"e\")","v":0}]
[null,null,null,null,{"$f":"menu!D21","v":"1 de Junio"},{"$f":"menu!D30","v":"2 de Junio"},{"$f":"menu!D39","v":"3 de Junio"},{"$f":"menu!D48","v":"6 de Junio"},{"$f":"menu!D57","v":"7 de Junio"},{"$f":"menu!D66","v":"8 de Junio"},{"$f":"menu!D75","v":"9 de Junio"},{"$f":"menu!D84","v":"10 de Junio"},{"$f":"menu!D93","v":"13 de Junio"},{"$f":"menu!D102","v":"14 de Junio"},{"$f":"menu!D111","v":"15 de Junio"},{"$f":"menu!D120","v":"16 de Junio"},{"$f":"menu!D129","v":"17 de Junio"},{"$f":"menu!D138","v":"20 de Junio"},{"$f":"menu!D147","v":"21 de Junio"},{"$f":"menu!D156","v":"22 de Junio"},{"$f":"menu!D165","v":"23 de Junio"},{"$f":"menu!D174","v":"24 de Junio"},{"$f":"menu!D183","v":"27 de Junio"},{"$f":"menu!D192","v":"28 de Junio "},{"$f":"menu!D201","v":"29 de Junio"},{"$f":"menu!D210","v":"30 de Junio"}]
[null,null,null,null,{"$f":"IF(E4=1,\"A\",IF(E4=2,\"B\",IF(E4=3,\"C\",IF(E4=4,\"D\",IF(E4=5,\"E\",IF(E4=6,\"V\",\"\"))))))","v":""},"","","","","","","","","","","","","","","","","","","","","",null,{"$f":"COUNTA(C4:AA4)","v":0},null,{"$f":"AB8*AC6","v":0}]
["RECUERDE QUE DESPUES DE ENVIAR SU PEDIDO (E-MAIL) TIENE 05 DIAS UTILES PARA ENVIARNOS SU VOUCHER O TRANSFERENCIA DE PAGO MEDIANTE E-MAIL.\nLA MORA SE COBRA SOLO  DESPUES DEL 5TO DIA DE SERVICIO  EN CASO USTED NO REALICE EL ABONO.",null,null,null,null,null,null,null,null,null,null,null,null,null,null,null,null,null,null,null,null,null,null,null,null,null,null,null,"TOTAL ",{"$f":"SUM(AD6:AD6)","v":0}]
[null,null,null,null,null,null,null,null,null,null,null,null,null,null,null,null,null,null,null,null,null,null,null,null,null,null,null,null,null,{"$f":"12","v":12}]
[null,null,null,null,null,null,null,null,null,null,null,null,null,null,null,null,null,null,null,null,null,null,null,null,null,null,null,null,"PAGO CON MORA "]
[]
["RESUMEN DE PEDIDO TOTAL:"]
["          CORREO ELECTRÓNICO:\n lunch-sm@happylunchesservice.com"]
[]
[]
[]
[]
[]
[]
[]
[]
[]
[]
["HORARIO DE ATENCIÓN AL CLIENTE: TELÉFONOS FIJOS - LUNES A VIERNES DE 7AM - 4PM    CELULARES: 7AM - 4PM"]
["Teléfonos:  445-8009  ó  250-8990         Maite Valdivia: 967759206"]
[]
[]
["Encuentre el menú en :    www.happylunchesservice.com"]

{"sheet":"menu","index":3,"n_rows":227,"n_cols":6,"rows_kept":227,"cut":false,"hidden":true,"merged":[[218,0,226,0],[191,0,199,0],[200,0,208,0],[209,0,217,0],[173,0,181,0],[182,0,190,0],[128,0,136,0],[137,0,145,0],[146,0,154,0],[155,0,163,0],[164,0,172,0],[83,0,91,0],[92,0,100,0],[101,0,109,0],[110,0,118,0],[119,0,127,0],[38,0,46,0],[47,0,55,0],[56,0,64,0],[65,0,73,0],[74,0,82,0],[0,0,0,2],[2,0,10,0],[11,0,19,0],[20,0,28,0],[29,0,37,0],[218,3,226,3],[2,3,10,3],[11,3,19,3],[20,3,28,3],[29,3,37,3]]}
["Desde esta hoja de cálculo se ingresan los pedidos mensuales para que se actulicen los calendarios NO SE MUESTRA A LOS CLIENTES\n*SOLO SE CAMBIA DÍA Y MENU"]
["DIAS","OPCIONES"]
["2 de Mayo","Entrada","ENSALADA DE ESPINACA"]
[null,"A","LENTEJITAS CON GUISO DE POLLO/ARROZ"]
[null,"B","GUISO DE CARNE CON ARROZ"]
[null,"C","POLLO A LA PLANCHA CON ARROZ A LA JARDINERA"]
[null,"D","ENSALADA CÉSAR CON POLLITO A LA PLANCHA "]
[null,"E","ARROZ CHAUFA DE POLLO"]
[null,"V","SPAGUETTI AL PESTO CON QUESO PARMESANO"]
[null,"postre","FRUTA DE ESTACIÓN"]
[null,"refresco","LIMONADA"]
["3 de Mayo ","Entrada","HUEVITO RELLENO"]
[null,"A","POLLO AL HORNO CON PAPAS DORADAS "]
[null,"B","ARROZ TAPADO CON PLATANITO AL GRILL"]
[null,"C","POLLO A LA PLANCHA CON PAPA SANCOCHADA Y VERDURAS"]
[null,"D","ENSALADA FRESCA CON PESCADO AL VAPOR"]
[null,"E","PIZZA CLÁSICA ARTESANAL CON ENSALADA"]
[null,"V","SALTADO DE CHOCLO VEGETARIANO"]
[null,"postre","GELATINA DE COLORES"]
[null,"refresco","CHICHA MORADA"]
["4 de Mayo ","Entrada","ENSALADA DE PEPINO ","1 de Junio","Entrada","VERDURAS SALTEADAS"]
[null,"A","TRIGO GUISADO CON QUESITO / ARROZ PRIMAVERA",null,"A","POLLO AL VINO CON ARROZ "]
[null,"B","SPAGHETTI A LA BOLOGNESA ",null,"B","SPAGHETTI AL PESTO CON GUISO DE RES"]
[null,"C","POLLO A LA PLANCHA CON ARROZ Y VERDURAS",null,"C","POLLO A LA PLANCHA CON ARROZ PRIMAVERA"]
[null,"D","ENSALADA DELICIA CON PAVITO ",null,"D","ENSALADA BRUSCHETA CON POLLO EN DADOS"]
[null,"E","POLLITO BBQ CON ZANAHORIA Y APIO EN TIRAS",null,"E","BISTECK(EN TROZOS) CON PAPITAS"]
[null,"V","FILETE DE GLUTEN CON SALSA DE ESPINACAS Y ARROZ",null,"V","SUPER OCOPA CON HUEVO DURO"]
[null,"postre","FLAN",null,"postre","MINI BROWNIE"]
[null,"refresco","NARANJADA",null,"refresco","MARACUYÁ"]
["5 de Mayo","Entrada","SOLTERITO","2 de Junio","Entrada","PAPA A LA HUANCAINA "]
[null,"A","OLLUQUITOS GUISADOS CON RES /ARROZ BLANCO",null,"A","ARROZ CON POLLO "]
[null,"B","POLLO A LA COCA-COLA/ARROZ PRIMAVERA",null,"B","ARVEJAS VERDES CON GUISITO DE POLLO "]
[null,"C","POLLO A LA PLANCHA CON PURÉ DE PAPA AMARILLA",null,"C","POLLO A LA PLANCHA CON CHOCLITO CON QUESO"]
[null,"D","ENSALADA ORIENTAL CON POLLO A LA PLANCHA ",null,"D","PALTA RELLENA CON POLLITO Y VERDURAS"]
[null,"E","CHICKEN FINGERS CON BOLIYUCAS EN QUINUA",null,"E","PECHUGUITAS TERIYAKI CON ARROZ CHAUFA"]
[null,"V","PAPA A LA HUANCAINA CON HUEVO DURO",null,"V","PEPIAN DE CHOCLO CON ARROZ"]
[null,"postre","GALLETAS NATURALES",null,"postre","GALLETAS NATURALES"]
[null,"refresco","MARACUYÁ",null,"refresco","AGUA DE PIÑA"]
["6 de Mayo","Entrada","MINI CAPRESSE","3 de Junio","Entrada","SOUFFLÉ DE VERDURAS"]
[null,"A","FRIJOLES CANARIO CON SECO DE RES",null,"A","ESTOFADO DE POLLO /ARROZ"]
[null,"B","POLLO A LA OLLA/ARROZ",null,"B","VAINITAS SALTEADAS CON RES/ARROZ BLANCO"]
[null,"C","POLLO A LA PLANCHA CON PAPAS DORADAS Y VERDURAS",null,"C","POLLO A LA PLANCHA CON ARROZ A LA JARDINERA"]
[null,"D","ENSALADA DE BRÓCOLI CON POLLO EN CUBOS",null,"D","TACO SALAD"]
[null,"E","NUGGETS AL HORNO CON TEQUEÑOS CON GUACAMOLE",null,"E","HUEVITOS EN SU NIDO CON ENSALADA RUSA"]
[null,"V","ARROZ CHAUFA VEGETARIANO ",null,"V","TORTILLA DE COLIFLOR(VEGETARIANO) CON ARROZ PRIMAVERA"]
[null,"postre","MINI PYE DE MANZANA",null,"postre","MUFFIN DE ZANAHORIA"]
[null,"refresco","LIMONADA",null,"refresco","LIMONADA"]
["9 de Mayo","Entrada","PAPA A LA HUANCAINA","6 de Junio","Entrada","ENSALADA DE PALTA"]
[null,"A","ARROZ CON POLLO ",null,"A","SPAGHETTI EN SALSA DE CARNE"]
[null,"B","LOMITO STROGONOFF CON ARROZ  PRIMAVERA",null,"B","MILANESA DE PESCADO CON ARROZ PRIMAVERA"]
[null,"C","POLLO A LA PLANCHA CON ARROZ PRIMAVERA",null,"C","POLLO A LA PLANCHA CON VERDURAS Y ARROZ"]
[null,"D","ENSALADA DE ATÚN ",null,"D","ENSALADA DE APIO , PALTA Y POLLO "]
[null,"E","POLLITO ANTICUCHADO CON PAPAS DORADAS",null,"E","BISTECK (EN TROZOS) CON ARROZ CON VERDURAS"]
[null,"V","ARROZ TAPADO VEGETARIANO CON PLATANITO AL GRILL",null,"V","ARROZ CRIOLLO DE SOYA"]
[null,"postre","FRUTA DE ESTACIÓN",null,"postre","FRUTA DE ESTACIÓN "]
[null,"refresco","NARANJADA",null,"refresco","LIMONADA"]
["10 de Mayo","Entrada","ENSALADA DE TOMATE","7 de Junio","Entrada","ENSALADA DE PEPINO"]
[null,"A","GARBANZOS GUISADOS CON CERDO / ARROZ PRIMAVERA",null,"A","CARAPULCRA GUISADA CON CERDO"]
[null,"B","PESCADO A LA PLANCHA CON YUQUITAS DORADAS",null,"B","TALLARIN SALTADO ORIENTAL CON RES"]
[null,"C","POLLO A LA PLANCHA CON YUCAS DORADAS",null,"C","POLLO A LA PLANCHA CON PAPITAS"]
[null,"D","ENSALADA CÉSAR CON POLLO A LA PLANCHA",null,"D","CAUSA LIMEÑA"]
[null,"E","POLLO EN SALSA BBQ CON PAPITAS",null,"E","PIERNA DE POLLO CON PAPITAS"]
[null,"V","CAUSA VEGETARIANA",null,"V","SALTADO VEGETARIANO CON ARROZ"]
[null,"postre","MINI ALFAJOR",null,"postre","GELATINA"]
[null,"refresco","LIMONADA",null,"refresco","CHICHA MORADA"]
["11 de Mayo","Entrada","PAN AL AJO","8 de Junio","Entrada","MINI CÉSAR"]
[null,"A","LASAGNA DE CARNE",null,"A","POLLITO STROGONOFF CON ARROZ CON ZANAHORIAS"]
[null,"B","CAU-CAU DE POLLO CON ARROZ",null,"B","FILETE PESCADO A LA PLANCHA CON YUCAS AL HORNO"]
[null,"C","POLLO A LA PLANCHA CON PAPAS DORADAS",null,"C","POLLO A LA PLANCHA CON PAPAS A LA GRIEGA"]
[null,"D","ENSALADA CRIOLLA CON POLLO EN DADOS",null,"D","ENSALADA DE ESPINACAS CON PAVITO AL HORNO"]
[null,"E","PIZZADILLA DE JAMÓN Y QUESO CON ENSALADITA",null,"E","CHICKEN FINGERS CON PAPAS AL HORNO"]
[null,"V","LENTEJITAS GUISADAS CON HUEVITO AL GRILL",null,"V","PAPA A LA HUANCAINA CON HUEVO DURO "]
[null,"postre","GELATINA DE COLORES",null,"postre","FLAN "]
[null,"refresco","CHICHA MORADA",null,"refresco","MARACUYÁ"]
["12 de Mayo","Entrada","ENSALADA FRESCA","9 de Junio","Entrada","ENSALADA TRICOLOR"]
[null,"A","CARAPULCRA GUISADA CON RES",null,"A","CARNE GUISADA CON ARROZ A LA JARDINERA"]
[null,"B","MILANESA DE PESCADO CON PAPA SANCOCHADA",null,"B","AJÍ DE GALLINA"]
[null,"C","POLLO A LA PLANCHA CON ARROZ CON CHOCLO",null,"C","POLLO A LA PLANCHA CON ARROZ VERDURAS Y PAPA SANCOCHADA"]
[null,"D","ENSALADA RUSA CON PAVITA",null,"D","ENSALADA RUSA CON PAVITA "]
[null,"E","HAMBURGUESA AL PLATO CON PAPITAS",null,"E","POLLO EN SALSA BBQ CON CHOCLO ENTERO"]
[null,"V","SALTADO DE BRÓCOLI CON SOYA / ARROZ",null,"V","PASTEL DE ACELGA CON VERDURAS SALTEADAS"]
[null,"postre","FRUTA PICADA",null,"postre","FRUTA DE ESTACIÓN"]
[null,"refresco","LIMONADA",null,"refresco","LIMONADA"]
["13 de Mayo","Entrada","ENSALADA DE VERDURAS","10 de Junio","Entrada","ENSALADA DE VERDURAS"]
[null,"A","POLLO A LA COCA-COLA CON ARROZ PRIMAVERA",null,"A","LOMITO AL PIMIENTO CON ARROZ BLANCO"]
[null,"B","ESTOFADO DE RES CON ARROZ",null,"B","MILANESA DE POLLO CON VERDURAS"]
[null,"C","POLLO A LA PLANCHA CON PURÉ DE ESPINACA",null,"C","POLLO A LA PLANCHA CON ENSALADA CALIENTE"]
[null,"D","ENSALADA PARRILLERA CON POLLITO A LA PLANCHA ",null,"D","ENSALADA PARRILLERA CON POLLO "]
[null,"E","HUEVITOS EN SU NIDO CON CAMOTES DORADOS",null,"E","DEDITOS DE PESCADO CON PAPAS DORADAS"]
[null,"V","ARROZ CRIOLLO DE SOYA",null,"V","SALTADO DE VERDURAS CON SOYA"]
[null,"postre","MUFFIN DE FRUTAS",null,"postre","PYE DE FRUTAS"]
[null,"refresco","NARANJADA",null,"refresco","CARAMBOLA"]
["16 de Mayo","Entrada","PAPAS EMPEREJILADAS","13 de Junio","Entrada","ENSALADA DE COL "]
[null,"A","POLLITO SALTADO CON ARROZ",null,"A","TALLARINES SALTADOS CON RES"]
[null,"B","MILANESA DE PESCADO CON ARROZ Y VERDURAS",null,"B","ARROZ CON POLLO "]
[null,"C","POLLO A LA PLANCHA CON CHOCLO EN TROZOS ",null,"C","POLLO A LA PLANCHA CON ARROZ Y VERDURAS"]
[null,"D","ENSALADA COBB CON POLLITO",null,"D","ENSALADA ORIENTAL CON POLLITO"]
[null,"E","BISTECK(TROZADO)  CON PAPITAS ",null,"E","DEDITOS DE POLLO CON ARROZ PRIMAVERA"]
[null,"V","SECO DE GLUTEN CON ARROZ",null,"V","CAIHUA VEGETARIANA / ARROZ"]
[null,"postre","FRUTA DE ESTACIÓN",null,"postre","FRUTA DE ESTACIÓN"]
[null,"refresco","NARANJADA",null,"refresco","MARACUYÁ "]
["17 de Mayo","Entrada","CHOLITOS CON OCOPA","14 de Junio","Entrada","ENSALADA DE VERDURAS"]
[null,"A","ALBONDIGAS A LA BOLOGNESA / ARROZ",null,"A","AJÍ DE GALLINA"]
[null,"B","PAVITA GUISADA / ARROZ",null,"B","ALBÓNDIGAS A LA NAPOLITANA"]
[null,"C","POLLO A LA PLANCHA CON PAPITAS",null,"C","POLLO A LA PLANCHA CON PURÉ "]
[null,"D","ENSALADA CAPRESSE CON POLLITO A LA PLANCHA ",null,"D","ENSALADA DE GARBANZOS CON ATÚN"]
[null,"E","CHICKEN FINGERS CON PURÉ DE PAPITA AMARILLA ",null,"E","POLLO AL SILLAO CON ARROZ PRIMAVERA"]
[null,"V","LASAGNA VEGETARIANA DE PORO Y ESPINACAS",null,"V","CAUSA VEGETARIANA"]
[null,"postre","PYE DE MANZANA",null,"postre","BOMBITAS HAPPY LUNCHES "]
[null,"refresco","CHICHA MORADA",null,"refresco","CHICHA MORADA"]
["18 de Mayo","Entrada","ENSALADA COCIDA ","15 de Junio","Entrada","SALPICÓN DE VERDURAS"]
[null,"A","POLLO EN SALSA DE ESPARRAGOS CON ARROZ PRIMAVERA",null,"A","CAU CAU DE POLLO/ARROZ"]
[null,"B","SPAGHETTI A LA HUANCAINA CON LOMITO AL JUGO",null,"B","GUISO A LA JARDINERA CON ARROZ "]
[null,"C","POLLO A LA PLANCHA CON ARROZ BLANCO Y VERDURAS",null,"C","POLLO A LA PLANCHA CON SPAGHETTI ALFREDO"]
[null,"D","PALTA RELLENA CON POLLITO Y VERDURAS",null,"D","ENSALADA DE CAIHUA CON POLLO A LA PLANCHA "]
[null,"E","PIZZA CLÁSICA ARTESANAL CON ENSALADA",null,"E","PIERNITA DE POLLO CON PAPITAS"]
[null,"V","FILETE DE GLUTEN CON SALSA DE VERDURAS/ARROZ",null,"V","PALLARES GUISADOS / HUEVITO FRITO"]
[null,"postre","COMPOTA DE FRUTA",null,"postre","GELATINA"]
[null,"refresco","LIMONADA",null,"refresco","LIMONADA "]
["19 de Mayo","Entrada","ENSALADA FRESCA","16 de Junio","Entrada","WANTAN CON TAMARINDO"]
[null,"A","PAPA RELLENA DE POLLO / VERDURAS ",null,"A","ARROZ CHAUFA AEROPUERTO"]
[null,"B","FILETE DE PESCADO CON ARROZ CON CHOCLO",null,"B","CARAPULCRA GUISADA CON CERDO"]
[null,"C","POLLO A LA PLANCHA CON PAPAS DORADAS",null,"C","POLLO A LA PLANCHA CON PAPITAS Y VERDURAS"]
[null,"D","ENSALADA DE COL CON POLLO A LA PLANCHA",null,"D","ENSALADA WALDORF CON PAVITO AL HORNO"]
[null,"E","HAMBURGUESA DE RES CON VERDURAS Y ARROZ",null,"E","HUEVITOS EN SU NIDO CON PAPITAS"]
[null,"V","MACARRONES CON QUESO ",null,"V","ARROZ CHAUFA VEGETARIANO"]
[null,"postre","ARROZ CON LECHE",null,"postre","MUFFIN DE NARANJA"]
[null,"refresco","NARANJADA",null,"refresco","NARANJADA"]
["20 de Mayo","Entrada","ENSALADA DE PALTA","17 de Junio","Entrada","ENSALADA DE ESPINACAS"]
[null,"A","SPAGHETTI A LO ALFREDO CON POLLITO  PICADO",null,"A","PAVITO AL HORNO CON ENSALADA RUSA"]
[null,"B","PAVITO AL HORNO CON CAMOTES AL HORNO",null,"B","CORDON BLEU DE POLLO CON ARROZ"]
[null,"C","POLLO A LA PLANCHA CON PAPITAS",null,"C","POLLITO A PLANCHA CON ENSALADITA CALIENTE"]
[null,"D","ENSALADA COBB CON POLLITO ",null,"D","ENSALADA DE QUINUA CON POLLITO"]
[null,"E","POLLO TIPO PARRILLA CON PAPITAS",null,"E","PIERNITA TERIYAKI CON PAPAS AL HORNO"]
[null,"V","SALTADO VEGETARIANO CON ARROZ",null,"V","PAPAS DUQUESAS CON HAMBURGUESA VEGETARIANA "]
[null,"postre","GALLETAS NATURALES",null,"postre","FLAN CON GELATINA"]
[null,"refresco","MARACUYÁ",null,"refresco","LIMONADA"]
["23 de Mayo","Entrada","WANTAN CON TAMARINDO","20 de Junio","Entrada","ENSALADA DE COL "]
[null,"A","ARROZ CHAUFA MIXTO DE POLLO Y RES",null,"A","CAIGUA RELLENA DE RES/ARROZ BLANCO"]
[null,"B","VAINITAS SALTEADAS CON RES/ARROZ",null,"B","POLLO AL SILLAO CON ARROZ"]
[null,"C","POLLO A LA PLANCHA CON ARROZ Y VERDURAS",null,"C","POLLO A LA PLANCHA CON ARROZ CON VERDURAS"]
[null,"D","ENSALADA ORIENTAL CON POLLITO A LA PLANCHA ",null,"D","ENSALADA DELICIA CON POLLO "]
[null,"E","TORTILLAS DE ATÚN CON ARROZ Y VERDURAS",null,"E","LENTEJITAS GUISADAS/PECHUGUITAS DE POLLO"]
[null,"V","TRIGO GUISADO CON QUESITO/BRÓCOLI",null,"V","FILETE DE GLUTEN CON SALSA DE VERDURAS/ARROZ"]
[null,"postre","YOGURT",null,"postre","FRUTA DE ESTACIÓN "]
[null,"refresco","AGUA MINERAL",null,"refresco","LIMONADA"]
["24 de Mayo","Entrada","CHOCLITO CON QUESO","21 de Junio","Entrada","HUEVO RELLENO"]
[null,"A","VAINITAS SALTEADAS CON RES",null,"A","POLLO EN SALSA BLANCA/ARROZ CON ZANAHORIA"]
[null,"B","POLLO AL SILLAO CON ARROZ",null,"B","SPAGHETTI AL PESTO CON GUISO DE RES"]
[null,"C","POLLO A LA PLANCHA CON VERDURAS Y PAPA",null,"C","POLLO A LA PLANCHA CON PAPITAS"]
[null,"D","ENSALADA BRUSCHETTA CON POLLITO A LA PLANCHA",null,"D","ENSALADA DE LEGUMBRES COCIDAS CON PAVO "]
[null,"E","POLLITO ANTICUCHADO CON CHOCLO EN TROZOS",null,"E","CHICKEN FINGERS CON ARROZ A LA JARDINERA"]
[null,"V","CHOCLO SALTADO VEGETARIANO",null,"V","CANUTOS CAPRESSE"]
[null,"postre","GELATINA DE COLORES",null,"postre","GALLETAS NATURALES"]
[null,"refresco","CHICHA MORADA",null,"refresco","CHICHA MORADA"]
["25 de Mayo","Entrada","ENSALADA FRESCA","22 de Junio","Entrada","ENSALADA DE TOMATE"]
[null,"A","FRIJOLES GUISADOS CON CERDO/PRIMAVERA",null,"A","OLLUQUITOS GUISADOS CON RES /ARROZ BLANCO"]
[null,"B","POLLO SALTADO CON ARROZ",null,"B","SECO A LA NORTEÑA CON YUCA"]
[null,"C","POLLO A LA PLANCHA CON PURÉ ROSADO",null,"C","POLLO A LA PLANCHA CON ARROZ PRIMAVERA"]
[null,"D","ENSALADA CRIOLLA CON POLLO A LA PLANCHA",null,"D","ENSALADA DE ATÚN "]
[null,"E","PIZZA CLÁSICA CON ENSALADA",null,"E","CANUTOS A LO ALFREDO CON POLLITO"]
[null,"V","SECO VEGETARIANO CON ARROZ",null,"V","CAU CAU VEGETARIANO "]
[null,"postre","FRUTA DE ESTACIÓN",null,"postre","MINI ALFAJOR"]
[null,"refresco","LIMONADA",null,"refresco","LIMONADA"]
["26 de Mayo","Entrada","TEQUEÑOS CON GUACAMOLE","23 de Junio","Entrada","ENSALADA DE PALTA"]
[null,"A","POLLO A LA REINA CON ARROZ",null,"A","POLLITO SALTADO CON ARROZ "]
[null,"B","SECO DE RES CON ARROZ",null,"B","POLLO A LA OLLA CON ARROZ"]
[null,"C","POLLO A LA PLANCHA CON  ARROZ A LA JARDINERA",null,"C","POLLO A LA PLANCHA CON VERDURAS Y PAPAS"]
[null,"D","ENSALADA CHEFF CON POLLITO A LA PLANCHA ",null,"D","ENSALADA DE VERDURAS CON POLLO A LA PLANCHA "]
[null,"E","BISTECK(TROZADO)  CON PAPITAS",null,"E","ARROZ CHAUFA AEROPUERTO "]
[null,"V","FILETE DE GLUTEN CON SALSA DE VERDURAS/ARROZ",null,"V","ARROZ A LA JARDINERA CON SOYA AL JUGO"]
[null,"postre","MUFFIN DE FRUTA ",null,"postre","PYE DE FRUTAS"]
[null,"refresco","MARACUYÁ",null,"refresco","MARACUYÁ"]
["27 de Mayo","Entrada","ENSALADA DE COL","24 de Junio","Entrada","ENSALDA BRUSCHETTA"]
[null,"A","ARROZ TAPADO CON PLATANO A LA PLANCHA",null,"A","PESCADO A LA PLANCHA CON YUQUITAS DORADAS"]
[null,"B","POLLO A LA COCACOLA/ARROZ",null,"B","POLLO A LA NARANJA CON ARROZ "]
[null,"C","POLLO A LA PLANCHA CON PAPITAS",null,"C","POLLO A LA PLANCHA CON PAPITAS Y BRÓCOLI"]
[null,"D","ENSALADA RUSA CON MEDALLONES DE PAVITA",null,"D","ENSALADA CAPRESSE CON POLLITO"]
[null,"E","PIERNITAS AL SILLAO CON ARROZ",null,"E","NUGGETS AL HORNO CON TEQUEÑOS"]
[null,"V","GUISO DE SOYA CON ARROZ BLANCO",null,"V","LOCRO DE ZAPALLO CON ARROZ"]
[null,"postre","PYE DE MANZANA ",null,"postre","FRUTA DE ESTACIÓN"]
[null,"refresco","LIMONADA",null,"refresco","LIMONADA"]
["30 de Mayo","Entrada","HUEVO RELLENO","27 de Junio","Entrada","MINI ENSALADA ORIENTAL"]
[null,"A","LOMO SALTADO CON ARROZ",null,"A","LOMO SALTADO CON ARROZ"]
[null,"B","POLLO AL SILLAO / ARROZ PRIMAVERA",null,"B","POLLO CON PIÑA/ARROZ CHAUFA"]
[null,"C","POLLO A LA PLANCHA CON PAPA SANCOCHADA Y VERDURAS",null,"C","ENSALADA FRESCA CON POLLO A LA PLANCHA "]
[null,"D","ENSALADA ORIENTAL CON POLLITO",null,"D","CAUSA DE POLLO Y VERDURAS "]
[null,"E","PECHUGUITAS CON PAPITAS",null,"E","PAELLA CON POLLO "]
[null,"V","CAUSA VEGETARIANA",null,"V","SALTADO VEGETARIANO CON ARROZ"]
[null,"postre","BOMBITAS HAPPY LUNCHES",null,"postre","ARROZ CON LECHE"]
[null,"refresco","NARANJADA",null,"refresco","LIMONADA"]
["31 de Mayo","Entrada","ENSALADA CALIENTE","28 de Junio ","Entrada","TORTILLA ESPAÑOLA"]
[null,"A","HAMBURGUESA DE RES AL PLATO",null,"A","POLLO A LA REINA CON ARROZ"]
[null,"B","COLIFLOR SALTEADA CON POLLO /ARROZ BLANCO",null,"B","SPAGHETTI A LA CARBONARA CON POLLO"]
[null,"C","POLLO A LA PLANCHA CON ENSALADA CALIENTE",null,"C","POLLO A LA PLANCHA CON PAPAS DORADAS"]
[null,"D","ENSALADA DE ATÚN CON PAPA",null,"D","ENSALADA CÉSAR CON POLLO A LA PLANCHA "]
[null,"E","HUEVITOS EN SU NIDO CON ARROZ CON VERDURAS",null,"E","POLLITO AL HORNO CON LENTEJITAS GUISADAS"]
[null,"V","ARROZ TAPADO VEGETARIANO CON PLÁTANO",null,"V","SPAGHETTI A VEGETARIANO"]
[null,"postre","FRUTA DE ESTACIÓN",null,"postre","GELATINA"]
[null,"refresco","CHICHA MORADA",null,"refresco","CHICHA MORADA"]
[null,"Entrada",null,"29 de Junio","Entrada","OCOPITA"]
[null,"A",null,null,"A","VAINITAS SALTEADAS CON RES/ARROZ"]
[null,"B",null,null,"B","LENTEJITAS CON GUISO DE POLLO/ARROZ"]
[null,"C",null,null,"C","POLLO A LA PLANCHA CON ENSALADA RUSA"]
[null,"D",null,null,"D","PALTA RELLENA CON POLLITO Y VERDURAS"]
[null,"E",null,null,"E","ARROZ CHAUFA DE POLLO Y CARNE"]
[null,"V",null,null,"V","PIZZA CLÁSICA CON ENSALADA"]
[null,"postre",null,null,"postre","FLAN CON GELATINA"]
[null,"refresco",null,null,"refresco","NARANJADA"]
[null,"Entrada",null,"30 de Junio","Entrada","MINI ENSALADA CRIOLLA"]
[null,"A",null,null,"A","FRIJOLES GUISADOS CON CERDO / ARROZ PRIMAVERA"]
[null,"B",null,null,"B","ARROZ CON POLLO "]
[null,"C",null,null,"C","POLLO A LA PLANCHA CON VEGETALES Y ARROZ"]
[null,"D",null,null,"D","ENSALADA FRESCA CON ASADO DE RES"]
[null,"E",null,null,"E","HUEVITOS EN SU NIDO CON LENTEJITAS GUISADAS"]
[null,"V",null,null,"V","MACARRONES CON QUESO"]
[null,"postre",null,null,"postre","BOMBITAS HAPPY LUNCHES"]
[null,"refresco",null,null,"refresco","LIMONADA"]
[null,"Entrada",null,null,"Entrada"]
[null,"A",null,null,"A"]
[null,"B",null,null,"B"]
[null,"C",null,null,"C"]
[null,"D",null,null,"D"]
[null,"E",null,null,"E"]
[null,"V",null,null,"V"]
[null,"postre",null,null,"postre"]
[null,"refresco",null,null,"refresco"]